[Event "Early-Titled-Tuesday-Blitz-April-02-2024"]
[Site "Chess.com"]
[Date "2024.04.02"]
[Round "6"]
[White "RobertoJBM"]
[Black "Shield12"]
[Result "0-1"]
[WhiteElo "2804"]
[BlackElo "3026"]
[TimeControl "180+1"]
[EndTime "9:08:30 PDT"]
[Termination "Shield12 won on time"]

1. d4 {[%clk 0:03:00.9]} 1... Nf6 {[%clk 0:02:59.9]} 2. Nf3 {[%clk 0:03:00.6]}
2... e6 {[%clk 0:02:59.7]} 3. e3 {[%clk 0:03:01.2]} 3... b6 {[%clk 0:02:59.2]}
4. Bd3 {[%clk 0:03:02.1]} 4... Bb7 {[%clk 0:02:59.7]} 5. O-O {[%clk 0:03:02.4]}
5... c5 {[%clk 0:02:59.9]} 6. Qe2 {[%clk 0:03:02.5]} 6... Be7 {[%clk 0:02:59.1]}
7. c3 {[%clk 0:03:02.5]} 7... d5 {[%clk 0:02:58.5]} 8. Nbd2 {[%clk 0:03:02.1]}
8... O-O {[%clk 0:02:58.2]} 9. e4 {[%clk 0:03:02]} 9... cxd4 {[%clk 0:02:56.9]}
10. Nxd4 {[%clk 0:03:01.7]} 10... Nc6 {[%clk 0:02:54.2]} 11. e5 {[%clk
0:02:59.5]} 11... Nd7 {[%clk 0:02:52.4]} 12. f4 {[%clk 0:02:58.6]} 12... Nc5
{[%clk 0:02:50.3]} 13. Bb5 {[%clk 0:02:55.8]} 13... Nxd4 {[%clk 0:02:46.4]} 14.
cxd4 {[%clk 0:02:55.4]} 14... Ne4 {[%clk 0:02:47.3]} 15. Bd3 {[%clk 0:02:47.7]}
15... f5 {[%clk 0:02:44.8]} 16. exf6 {[%clk 0:02:47.4]} 16... Bxf6 {[%clk
0:02:44.8]} 17. Nf3 {[%clk 0:02:46.1]} 17... Qe7 {[%clk 0:02:35.1]} 18. Be3
{[%clk 0:02:41.5]} 18... Rac8 {[%clk 0:02:34.6]} 19. Rac1 {[%clk 0:02:40.9]}
19... Nd6 {[%clk 0:02:32.8]} 20. Ne5 {[%clk 0:02:40.3]} 20... Nf5 {[%clk
0:02:30.1]} 21. Bf2 {[%clk 0:02:36.7]} 21... Rfd8 {[%clk 0:02:24.4]} 22. Rfe1
{[%clk 0:02:33.2]} 22... Re8 {[%clk 0:02:21.2]} 23. Rxc8 {[%clk 0:02:24.4]}
23... Rxc8 {[%clk 0:02:21.2]} 24. Ng4 {[%clk 0:02:15]} 24... Nxd4 {[%clk
0:02:07.6]} 25. Nxf6+ {[%clk 0:02:05.9]} 25... Qxf6 {[%clk 0:02:08.5]} 26. Qh5
{[%clk 0:01:33.5]} 26... g6 {[%clk 0:02:07.1]} 27. Qg4 {[%clk 0:01:25.6]} 27...
Rf8 {[%clk 0:01:57.3]} 28. g3 {[%clk 0:01:15.2]} 28... Bc8 {[%clk 0:01:51.5]}
29. Qd1 {[%clk 0:01:12.7]} 29... Nf5 {[%clk 0:01:30.1]} 30. Qe2 {[%clk
0:01:11.6]} 30... Bd7 {[%clk 0:01:28.6]} 31. b3 {[%clk 0:01:09.3]} 31... Rc8
{[%clk 0:01:27.1]} 32. Qd2 {[%clk 0:00:58.5]} 32... Nd4 {[%clk 0:01:22.6]} 33.
Kg2 {[%clk 0:00:55.1]} 33... Nc6 {[%clk 0:01:13.7]} 34. Bb5 {[%clk 0:00:53.2]}
34... Nb8 {[%clk 0:01:06.4]} 35. Be2 {[%clk 0:00:52.3]} 35... Qc3 {[%clk
0:00:52.6]} 36. Rd1 {[%clk 0:00:51.3]} 36... Qxd2 {[%clk 0:00:50.5]} 37. Rxd2
{[%clk 0:00:52.2]} 37... Nc6 {[%clk 0:00:48.9]} 38. Bb5 {[%clk 0:00:51.5]} 38...
Ne5 {[%clk 0:00:48.6]} 39. Be2 {[%clk 0:00:51.1]} 39... Nf7 {[%clk 0:00:47.8]}
40. Bd4 {[%clk 0:00:50.4]} 40... Nd6 {[%clk 0:00:47]} 41. Bd3 {[%clk 0:00:50.8]}
41... Bb5 {[%clk 0:00:46.7]} 42. Bc2 {[%clk 0:00:47.4]} 42... Kf7 {[%clk
0:00:45.6]} 43. Kf3 {[%clk 0:00:47]} 43... Ba6 {[%clk 0:00:42.6]} 44. a4 {[%clk
0:00:43.8]} 44... Bb7 {[%clk 0:00:37.7]} 45. g4 {[%clk 0:00:43.4]} 45... b5
{[%clk 0:00:33.2]} 46. Be5 {[%clk 0:00:42]} 46... Ke7 {[%clk 0:00:32.9]} 47. a5
{[%clk 0:00:33.6]} 47... b4 {[%clk 0:00:32]} 48. Bd3 {[%clk 0:00:31.7]} 48...
Kd7 {[%clk 0:00:26.9]} 49. h4 {[%clk 0:00:27.6]} 49... Bc6 {[%clk 0:00:23.2]}
50. h5 {[%clk 0:00:26.8]} 50... Bb5 {[%clk 0:00:20.3]} 51. Bc2 {[%clk
0:00:26.7]} 51... gxh5 {[%clk 0:00:17.4]} 52. gxh5 {[%clk 0:00:23.6]} 52... h6
{[%clk 0:00:15.2]} 53. Bg7 {[%clk 0:00:22.5]} 53... Nf7 {[%clk 0:00:13.6]} 54.
Bg6 {[%clk 0:00:21.6]} 54... Ke7 {[%clk 0:00:13.8]} 55. f5 {[%clk 0:00:20.1]}
55... Ng5+ {[%clk 0:00:13.4]} 56. Kf4 {[%clk 0:00:19.8]} 56... Ne4 {[%clk
0:00:12.3]} 57. Rg2 {[%clk 0:00:17]} 57... Rc1 {[%clk 0:00:10.4]} 58. Ke5 {[%clk
0:00:15.8]} 58... exf5 {[%clk 0:00:09.8]} 59. Bxf5 {[%clk 0:00:16.2]} 59... Re1
{[%clk 0:00:09.7]} 60. Kd4 {[%clk 0:00:14.9]} 60... Nd6 {[%clk 0:00:07.4]} 61.
Bc2 {[%clk 0:00:13.8]} 61... Rh1 {[%clk 0:00:03.5]} 62. Bg6 {[%clk 0:00:10.7]}
62... Rh4+ {[%clk 0:00:02.3]} 63. Kc5 {[%clk 0:00:10.2]} 63... a6 {[%clk
0:00:02.8]} 64. Rf2 {[%clk 0:00:07.8]} 64... Rh3 {[%clk 0:00:02.5]} 65. Bf6+
{[%clk 0:00:07.3]} 65... Ke6 {[%clk 0:00:02.7]} 66. Bg7 {[%clk 0:00:02.6]} 66...
Ne4+ {[%clk 0:00:03.3]} 67. Bxe4 {[%clk 0:00:02.8]} 67... dxe4 {[%clk
0:00:04.2]} 68. Bxh6 {[%clk 0:00:03.7]} 68... Rxh5+ {[%clk 0:00:03.4]} 69. Kd4
{[%clk 0:00:03.2]} 69... Rxh6 {[%clk 0:00:03.5]} 70. Kxe4 {[%clk 0:00:03.7]}
70... Rh4+ {[%clk 0:00:04]} 71. Ke3 {[%clk 0:00:03.8]} 71... Rh3+ {[%clk
0:00:04.9]} 72. Kd4 {[%clk 0:00:04.2]} 72... Rxb3 {[%clk 0:00:05.5]} 73. Kc5
{[%clk 0:00:05.1]} 73... Rb1 {[%clk 0:00:05.4]} 74. Rf4 {[%clk 0:00:04.8]} 74...
b3 {[%clk 0:00:05.8]} 75. Rb4 {[%clk 0:00:05.7]} 75... b2 {[%clk 0:00:05.7]} 76.
Kb6 {[%clk 0:00:06.6]} 76... Kd5 {[%clk 0:00:05.6]} 77. Rb3 {[%clk 0:00:06.4]}
77... Kc4 {[%clk 0:00:06]} 0-1

[Event "Early-Titled-Tuesday-Blitz-April-02-2024"]
[Site "Chess.com"]
[Date "2024.04.02"]
[Round "6"]
[White "valik3504"]
[Black "atalz0"]
[Result "1/2-1/2"]
[WhiteElo "2542"]
[BlackElo "2381"]
[TimeControl "180+1"]
[EndTime "9:08:30 PDT"]
[Termination "Game drawn - insufficient material"]

1. d4 {[%clk 0:03:00.9]} 1... d5 {[%clk 0:02:59.3]} 2. c4 {[%clk 0:03:00.5]}
2... Bf5 {[%clk 0:02:59.9]} 3. cxd5 {[%clk 0:02:56.2]} 3... Bxb1 {[%clk
0:02:59.6]} 4. Qa4+ {[%clk 0:02:35.8]} 4... c6 {[%clk 0:02:59]} 5. Rxb1 {[%clk
0:02:25.6]} 5... Qxd5 {[%clk 0:02:58.9]} 6. f3 {[%clk 0:02:21.4]} 6... e5 {[%clk
0:02:46.2]} 7. dxe5 {[%clk 0:02:15.3]} 7... Nd7 {[%clk 0:02:32.4]} 8. e4 {[%clk
0:01:44.6]} 8... Qxe5 {[%clk 0:02:28.5]} 9. Be3 {[%clk 0:01:44.3]} 9... Bc5
{[%clk 0:02:20.5]} 10. Qb3 {[%clk 0:01:33.7]} 10... Bxe3 {[%clk 0:02:10.9]} 11.
Qxe3 {[%clk 0:01:34.6]} 11... Qa5+ {[%clk 0:02:01.4]} 12. Qc3 {[%clk 0:01:15.1]}
12... Qxa2 {[%clk 0:01:49.6]} 13. Rd1 {[%clk 0:01:12.6]} 13... Ngf6 {[%clk
0:01:45.8]} 14. Bc4 {[%clk 0:01:03.1]} 14... Qa4 {[%clk 0:01:45.1]} 15. e5
{[%clk 0:00:50.5]} 15... Nd5 {[%clk 0:01:35.9]} 16. Bxd5 {[%clk 0:00:48.9]}
16... cxd5 {[%clk 0:01:36.8]} 17. Rxd5 {[%clk 0:00:48.5]} 17... O-O {[%clk
0:01:26.7]} 18. b3 {[%clk 0:00:42.2]} 18... Qh4+ {[%clk 0:01:06.4]} 19. g3
{[%clk 0:00:39.7]} 19... Qe7 {[%clk 0:01:04.7]} 20. f4 {[%clk 0:00:32.6]} 20...
Rac8 {[%clk 0:01:00.5]} 21. Qd2 {[%clk 0:00:25.8]} 21... Nb6 {[%clk 0:00:54.2]}
22. Rd4 {[%clk 0:00:25.5]} 22... Qa3 {[%clk 0:00:38.5]} 23. Ne2 {[%clk
0:00:17.9]} 23... Qxb3 {[%clk 0:00:23.6]} 24. O-O {[%clk 0:00:17.9]} 24... Nc4
{[%clk 0:00:21]} 25. Qd3 {[%clk 0:00:11]} 25... Qxd3 {[%clk 0:00:19.3]} 26. Rxd3
{[%clk 0:00:11.9]} 26... Rfd8 {[%clk 0:00:19.3]} 27. Nd4 {[%clk 0:00:06.4]}
27... g6 {[%clk 0:00:18.7]} 28. Rf2 {[%clk 0:00:02.8]} 28... a6 {[%clk
0:00:18.6]} 29. f5 {[%clk 0:00:02.8]} 29... Nxe5 {[%clk 0:00:17.2]} 30. Rdd2
{[%clk 0:00:02.7]} 30... gxf5 {[%clk 0:00:14.3]} 31. Nxf5 {[%clk 0:00:02.3]}
31... Rxd2 {[%clk 0:00:14.5]} 32. Rxd2 {[%clk 0:00:02.3]} 32... Re8 {[%clk
0:00:14.7]} 33. Nd6 {[%clk 0:00:02.7]} 33... Rd8 {[%clk 0:00:14.2]} 34. Rd5
{[%clk 0:00:03.1]} 34... Ng6 {[%clk 0:00:13.9]} 35. Rd4 {[%clk 0:00:02.7]} 35...
Ne7 {[%clk 0:00:13]} 36. Rd2 {[%clk 0:00:02.1]} 36... Kf8 {[%clk 0:00:12.8]} 37.
Rd4 {[%clk 0:00:01.8]} 37... Nc8 {[%clk 0:00:12.3]} 38. Nf5 {[%clk 0:00:01.9]}
38... Rxd4 {[%clk 0:00:12.6]} 39. Nxd4 {[%clk 0:00:02.8]} 39... b5 {[%clk
0:00:12.1]} 40. Kf2 {[%clk 0:00:03.5]} 40... Nd6 {[%clk 0:00:12.2]} 41. Ke3
{[%clk 0:00:03.9]} 41... Ke7 {[%clk 0:00:12.5]} 42. Kd3 {[%clk 0:00:04.5]} 42...
Kd7 {[%clk 0:00:12.6]} 43. Nf3 {[%clk 0:00:04.6]} 43... Kc7 {[%clk 0:00:12.6]}
44. Kd4 {[%clk 0:00:04.3]} 44... Kc6 {[%clk 0:00:12.4]} 45. Ne5+ {[%clk
0:00:04.7]} 45... Kb6 {[%clk 0:00:12.8]} 46. Nd7+ {[%clk 0:00:04.8]} 46... Kc7
{[%clk 0:00:12.8]} 47. Nf6 {[%clk 0:00:04.6]} 47... h6 {[%clk 0:00:12.7]} 48.
Kc5 {[%clk 0:00:05.1]} 48... a5 {[%clk 0:00:11]} 49. Nd5+ {[%clk 0:00:05.6]}
49... Kd7 {[%clk 0:00:10.9]} 50. Nb6+ {[%clk 0:00:06.2]} 50... Ke6 {[%clk
0:00:11.1]} 51. Na8 {[%clk 0:00:04.1]} 51... b4 {[%clk 0:00:10.3]} 52. Nc7+
{[%clk 0:00:04.5]} 52... Ke5 {[%clk 0:00:10.8]} 53. Nd5 {[%clk 0:00:03.2]} 53...
b3 {[%clk 0:00:10.8]} 54. Nf4 {[%clk 0:00:03.8]} 54... Ne4+ {[%clk 0:00:08.9]}
55. Kc4 {[%clk 0:00:04]} 55... b2 {[%clk 0:00:08.7]} 56. Nd3+ {[%clk 0:00:04.3]}
56... Kf5 {[%clk 0:00:09.1]} 57. Nxb2 {[%clk 0:00:05.2]} 57... Kg4 {[%clk
0:00:09.5]} 58. Kd5 {[%clk 0:00:03.9]} 58... Nf2 {[%clk 0:00:07.9]} 59. Ke5
{[%clk 0:00:03.4]} 59... Kh3 {[%clk 0:00:07.5]} 60. Kf6 {[%clk 0:00:03.2]} 60...
Kxh2 {[%clk 0:00:07.8]} 61. Kxf7 {[%clk 0:00:03.8]} 61... Kxg3 {[%clk
0:00:08.1]} 62. Kg6 {[%clk 0:00:04.6]} 62... Ng4 {[%clk 0:00:08.4]} 63. Kh5
{[%clk 0:00:04.2]} 63... Kf4 {[%clk 0:00:08.7]} 64. Nd3+ {[%clk 0:00:04.5]}
64... Ke3 {[%clk 0:00:09.1]} 65. Nc5 {[%clk 0:00:03.9]} 65... Kf4 {[%clk
0:00:08]} 66. Nd3+ {[%clk 0:00:03.3]} 66... Kf5 {[%clk 0:00:08.5]} 67. Nc5
{[%clk 0:00:03.2]} 67... Nf6+ {[%clk 0:00:06.3]} 68. Kxh6 {[%clk 0:00:03.4]}
68... Ne4 {[%clk 0:00:06.4]} 69. Na4 {[%clk 0:00:03.8]} 69... Ke5 {[%clk
0:00:06]} 70. Kh5 {[%clk 0:00:01.5]} 70... Kd5 {[%clk 0:00:06.3]} 71. Kg4 {[%clk
0:00:02.2]} 71... Kc4 {[%clk 0:00:04.7]} 72. Nb2+ {[%clk 0:00:02.9]} 72... Kc3
{[%clk 0:00:03.7]} 73. Na4+ {[%clk 0:00:03.3]} 73... Kb4 {[%clk 0:00:04.1]} 74.
Nb6 {[%clk 0:00:03.8]} 74... Nd6 {[%clk 0:00:03.2]} 75. Kf4 {[%clk 0:00:03.1]}
75... Nc4 {[%clk 0:00:03.4]} 76. Nd5+ {[%clk 0:00:03.3]} 76... Kc5 {[%clk
0:00:03.4]} 77. Nc3 {[%clk 0:00:03.3]} 77... Kb4 {[%clk 0:00:04]} 78. Nb1 {[%clk
0:00:02.6]} 78... Kb3 {[%clk 0:00:04.3]} 79. Ke4 {[%clk 0:00:02.7]} 79... a4
{[%clk 0:00:04.8]} 80. Kd4 {[%clk 0:00:02.8]} 80... Kb2 {[%clk 0:00:04.4]} 81.
Kxc4 {[%clk 0:00:02.5]} 81... Kxb1 {[%clk 0:00:04.4]} 82. Kb4 {[%clk 0:00:03.1]}
82... a3 {[%clk 0:00:05]} 83. Kxa3 {[%clk 0:00:03.4]} 1/2-1/2

[Event "Early-Titled-Tuesday-Blitz-April-02-2024"]
[Site "Chess.com"]
[Date "2024.04.02"]
[Round "6"]
[White "WiktoriaPOL"]
[Black "GP9isback23"]
[Result "0-1"]
[WhiteElo "2341"]
[BlackElo "2609"]
[TimeControl "180+1"]
[EndTime "9:08:35 PDT"]
[Termination "GP9isback23 won by checkmate"]

1. c4 {[%clk 0:02:58]} 1... e6 {[%clk 0:03:00.1]} 2. Nc3 {[%clk 0:02:57.5]} 2...
d5 {[%clk 0:03:00.4]} 3. cxd5 {[%clk 0:02:56.7]} 3... exd5 {[%clk 0:03:01.3]} 4.
d4 {[%clk 0:02:57.3]} 4... Nf6 {[%clk 0:03:01.6]} 5. Bg5 {[%clk 0:02:57.3]} 5...
Be7 {[%clk 0:03:02.1]} 6. e3 {[%clk 0:02:57.9]} 6... O-O {[%clk 0:02:59.5]} 7.
Bd3 {[%clk 0:02:58.4]} 7... Be6 {[%clk 0:02:59.5]} 8. Qc2 {[%clk 0:02:58.5]}
8... h6 {[%clk 0:02:59.6]} 9. Bh4 {[%clk 0:02:58.6]} 9... Nbd7 {[%clk
0:03:00.3]} 10. Nge2 {[%clk 0:02:58.7]} 10... c5 {[%clk 0:03:01]} 11. O-O {[%clk
0:02:49.1]} 11... Rc8 {[%clk 0:03:00.8]} 12. Nf4 {[%clk 0:02:37.7]} 12... a6
{[%clk 0:02:57.6]} 13. Nxe6 {[%clk 0:02:35.2]} 13... fxe6 {[%clk 0:02:58.5]} 14.
Bg6 {[%clk 0:02:31.1]} 14... Ng4 {[%clk 0:02:33]} 15. Bxe7 {[%clk 0:02:26.4]}
15... Qxe7 {[%clk 0:02:33.2]} 16. h3 {[%clk 0:02:26.3]} 16... Ngf6 {[%clk
0:02:31.1]} 17. Qe2 {[%clk 0:02:19.8]} 17... e5 {[%clk 0:02:26.2]} 18. dxc5
{[%clk 0:02:16.8]} 18... Nxc5 {[%clk 0:02:24.9]} 19. Rad1 {[%clk 0:02:11.9]}
19... Rcd8 {[%clk 0:02:23.7]} 20. b4 {[%clk 0:02:06.6]} 20... Ne6 {[%clk
0:02:04]} 21. a3 {[%clk 0:02:04.1]} 21... Qc7 {[%clk 0:01:38.9]} 22. Rc1 {[%clk
0:01:58.7]} 22... Qe7 {[%clk 0:01:35.7]} 23. Qa2 {[%clk 0:01:56.2]} 23... Kh8
{[%clk 0:01:33.1]} 24. Rfe1 {[%clk 0:01:37.5]} 24... Ng5 {[%clk 0:01:26.3]} 25.
Rcd1 {[%clk 0:01:24]} 25... Qe6 {[%clk 0:00:58.9]} 26. h4 {[%clk 0:00:50.6]}
26... Nh3+ {[%clk 0:00:34]} 27. gxh3 {[%clk 0:00:37.9]} 27... Qxh3 {[%clk
0:00:34.9]} 28. f3 {[%clk 0:00:38]} 28... Qxf3 {[%clk 0:00:23.5]} 29. Qg2 {[%clk
0:00:38.2]} 29... Qxg2+ {[%clk 0:00:06.2]} 30. Kxg2 {[%clk 0:00:39.1]} 30... Rd6
{[%clk 0:00:06.5]} 31. h5 {[%clk 0:00:39.2]} 31... Rfd8 {[%clk 0:00:05.4]} 32.
Rd2 {[%clk 0:00:23.5]} 32... Kg8 {[%clk 0:00:05.9]} 33. Red1 {[%clk 0:00:20.8]}
33... Kf8 {[%clk 0:00:06.3]} 34. Na4 {[%clk 0:00:10.3]} 34... b6 {[%clk
0:00:05]} 35. Nc3 {[%clk 0:00:08.3]} 35... Ke7 {[%clk 0:00:05.7]} 36. Ne2 {[%clk
0:00:06.5]} 36... Ke6 {[%clk 0:00:05.9]} 37. Ng3 {[%clk 0:00:06.8]} 37... Rc6
{[%clk 0:00:04]} 38. Bf5+ {[%clk 0:00:06.4]} 38... Ke7 {[%clk 0:00:04]} 39. Bg6
{[%clk 0:00:06.9]} 39... Rc3 {[%clk 0:00:03.2]} 40. Nf5+ {[%clk 0:00:06.8]}
40... Kf8 {[%clk 0:00:03.2]} 41. Rd3 {[%clk 0:00:05]} 41... Rc2+ {[%clk
0:00:03.3]} 42. R1d2 {[%clk 0:00:04.8]} 42... Rc4 {[%clk 0:00:04.2]} 43. Kg3
{[%clk 0:00:02.4]} 43... Ne4+ {[%clk 0:00:03.7]} 44. Kf3 {[%clk 0:00:01.8]}
44... Nxd2+ {[%clk 0:00:04.6]} 45. Rxd2 {[%clk 0:00:02.2]} 45... Rc6 {[%clk
0:00:04]} 46. Rd1 {[%clk 0:00:02.1]} 46... Rf6 {[%clk 0:00:04.6]} 47. Kg3 {[%clk
0:00:02.2]} 47... d4 {[%clk 0:00:03.8]} 48. exd4 {[%clk 0:00:02.3]} 48... exd4
{[%clk 0:00:04.7]} 49. Rxd4 {[%clk 0:00:02.4]} 49... Rxd4 {[%clk 0:00:04.9]} 50.
Nxd4 {[%clk 0:00:03.3]} 50... Rd6 {[%clk 0:00:05.1]} 51. Nf5 {[%clk 0:00:03.6]}
51... Rd3+ {[%clk 0:00:05.4]} 52. Kf4 {[%clk 0:00:04.1]} 52... Rxa3 {[%clk
0:00:06.3]} 53. Ke5 {[%clk 0:00:04.4]} 53... Ra4 {[%clk 0:00:06.9]} 54. b5
{[%clk 0:00:02.5]} 54... axb5 {[%clk 0:00:07]} 55. Kd5 {[%clk 0:00:03.1]} 55...
Rc4 {[%clk 0:00:06.5]} 56. Nd6 {[%clk 0:00:02.7]} 56... Rc5+ {[%clk 0:00:07.2]}
57. Kd4 {[%clk 0:00:02.7]} 57... Rg5 {[%clk 0:00:07.3]} 58. Ne4 {[%clk
0:00:02.2]} 58... Rg4 {[%clk 0:00:06.9]} 59. Kd3 {[%clk 0:00:02.3]} 59... b4
{[%clk 0:00:06.6]} 60. Kc4 {[%clk 0:00:02.7]} 60... Ke7 {[%clk 0:00:06.2]} 61.
Kxb4 {[%clk 0:00:03]} 61... Ke6 {[%clk 0:00:05.2]} 62. Kb5 {[%clk 0:00:03.3]}
62... Ke5 {[%clk 0:00:05.7]} 63. Nc3 {[%clk 0:00:01.9]} 63... Kd4 {[%clk
0:00:03.4]} 64. Ne2+ {[%clk 0:00:02.2]} 64... Ke3 {[%clk 0:00:03.3]} 65. Nc1
{[%clk 0:00:02]} 65... Rg5+ {[%clk 0:00:02.6]} 66. Kxb6 {[%clk 0:00:01.9]} 66...
Kf4 {[%clk 0:00:02.8]} 67. Nd3+ {[%clk 0:00:01.8]} 67... Ke3 {[%clk 0:00:03.1]}
68. Kc6 {[%clk 0:00:02.1]} 68... Rxg6+ {[%clk 0:00:02.6]} 69. hxg6 {[%clk
0:00:02]} 69... Kxd3 {[%clk 0:00:03.4]} 70. Kd6 {[%clk 0:00:02.6]} 70... h5
{[%clk 0:00:04]} 71. Ke6 {[%clk 0:00:03.3]} 71... h4 {[%clk 0:00:04.9]} 72. Kf7
{[%clk 0:00:04]} 72... h3 {[%clk 0:00:05.8]} 73. Kxg7 {[%clk 0:00:04.8]} 73...
h2 {[%clk 0:00:06.7]} 74. Kf7 {[%clk 0:00:05.4]} 74... h1=Q {[%clk 0:00:07.6]}
75. g7 {[%clk 0:00:06]} 75... Qd5+ {[%clk 0:00:07.6]} 76. Kf8 {[%clk 0:00:06.4]}
76... Qf5+ {[%clk 0:00:07.5]} 77. Ke7 {[%clk 0:00:06.6]} 77... Qe5+ {[%clk
0:00:06.5]} 78. Kf7 {[%clk 0:00:06.9]} 78... Qf5+ {[%clk 0:00:06.9]} 79. Ke7
{[%clk 0:00:07.3]} 79... Qg6 {[%clk 0:00:06.7]} 80. Kf8 {[%clk 0:00:07.8]} 80...
Qf6+ {[%clk 0:00:07.3]} 81. Kg8 {[%clk 0:00:08.3]} 81... Ke4 {[%clk 0:00:07.7]}
82. Kh7 {[%clk 0:00:08.8]} 82... Qh4+ {[%clk 0:00:07.5]} 83. Kg6 {[%clk
0:00:08.8]} 83... Qg4+ {[%clk 0:00:07.9]} 84. Kf7 {[%clk 0:00:07.4]} 84... Qf5+
{[%clk 0:00:08.3]} 85. Ke7 {[%clk 0:00:07.8]} 85... Qg6 {[%clk 0:00:07.5]} 86.
Kf8 {[%clk 0:00:08.2]} 86... Qf6+ {[%clk 0:00:08]} 87. Kg8 {[%clk 0:00:08.1]}
87... Kf5 {[%clk 0:00:07.5]} 88. Kh8 {[%clk 0:00:08.5]} 88... Kg6 {[%clk
0:00:06]} 89. Kg8 {[%clk 0:00:08.5]} 89... Qxg7# {[%clk 0:00:06.7]} 0-1